bitfinex-derivatives/quotes_BTCF0:USTF0_20240903
["timestamp","ask_amount","ask_price","bid_price","bid_amount"]
[1725384318290,0.086723,57936.0,57935.0,0.004]
[1725384318793,0.433046,57936.0,57935.0,0.004]
[1725384321693,1.063046,57936.0,57935.0,0.004]
[1725384323590,0.976723,57936.0,57935.0,0.090325]
[1725384327994,0.346723,57936.0,57935.0,0.090325]
[1725384329211,0.34601845,57936.0,57935.0,0.090325]
[1725384330095,0.34601845,57936.0,57935.0,0.088325]
[1725384330496,0.26,57936.0,57935.0,0.088325]
[1725384330696,0.26,57936.0,57935.0,0.087325]
[1725384332118,1.23168,57938.0,57937.0,0.172644]
[1725384332119,0.00088,57938.0,57937.0,0.172644]
[1725384332409,0.02869586,57941.0,57940.0,0.172634]
[1725384332708,0.0493,57947.0,57940.0,0.172634]
[1725384332709,0.0493,57947.0,57944.0,0.086311]
[1725384332903,0.3808,57945.0,57944.0,0.086311]
[1725384333795,0.02,57945.0,57944.0,0.086311]
[1725384333994,0.02,57945.0,57944.0,0.088311]
[1725384335307,0.04790854,57945.0,57944.0,0.088311]
[1725384335501,0.02,57945.0,57944.0,0.088311]
[1725384336502,0.02,57945.0,57944.0,0.327311]
[1725384336703,0.02,57945.0,57944.0,0.326311]
[1725384337007,1.49569023,57945.0,57935.0,0.004]
[1725384337210,0.6008,57936.0,57931.0,0.0320768]
[1725384337513,0.0458,57935.0,57934.0,0.086326]
[1725384337807,0.6758,57935.0,57934.0,0.086326]
[1725384339002,0.6708,57935.0,57934.0,0.086326]
[1725384339401,0.0004,57936.0,57935.0,0.086325]
[1725384339598,0.0004,57936.0,57935.0,0.326325]
[1725384341407,0.02777053,57936.0,57935.0,0.687125]
[1725384343111,0.0004,57936.0,57935.0,0.77345]
[1725384343408,0.0024,57936.0,57935.0,0.81955]
[1725384343709,0.0024,57936.0,57935.0,0.82055]
[1725384345802,0.0004,57936.0,57935.0,0.82155]
[1725384346405,0.0004,57936.0,57935.0,0.82055]
[1725384346608,0.0004,57936.0,57935.0,0.82255]
[1725384347119,0.0004,57936.0,57935.0,0.82155]
[1725384347410,0.0004,57936.0,57935.0,0.910875]
[1725384347906,0.0004,57936.0,57935.0,0.912875]
[1725384348503,0.0004,57936.0,57935.0,0.911875]
[1725384349207,0.0004,57936.0,57935.0,0.910875]
[1725384349914,0.0004,57936.0,57935.0,0.911875]
[1725384350414,0.0004,57936.0,57935.0,0.913875]
[1725384350817,0.0004,57936.0,57935.0,0.914875]
[1725384351405,0.0004,57936.0,57935.0,0.916875]
[1725384351912,0.0004,57936.0,57935.0,0.910875]
[1725384352113,0.0004,57936.0,57935.0,0.913875]
[1725384352716,0.0004,57936.0,57935.0,0.908875]
[1725384352916,0.0004,57936.0,57935.0,0.911875]
[1725384353209,0.326313,57943.0,57942.0,0.086314]
[1725384353412,0.346313,57943.0,57942.0,0.086314]
[1725384354310,0.37498846,57943.0,57942.0,0.086314]
[1725384354708,0.086316,57941.0,57940.0,0.06849854]
[1725384354909,0.086317,57940.0,57939.0,0.15481654]
[1725384355313,0.086319,57939.0,57938.0,0.06849854]
[1725384355514,0.08632,57938.0,57937.0,0.3608]
[1725384355822,0.08632,57938.0,57935.0,0.087324]
[1725384355823,0.172646,57936.0,57935.0,0.001]
[1725384356013,0.326323,57936.0,57933.0,0.06853788]
[1725384356719,0.0004,57934.0,57933.0,0.15486588]
[1725384356912,0.326323,57936.0,57935.0,0.086925]
[1725384359218,0.326323,57936.0,57935.0,0.086325]
[1725384359823,0.556323,57936.0,57935.0,0.086325]
[1725384360016,0.560323,57936.0,57935.0,0.086325]
[1725384360215,0.086326,57934.0,57933.0,0.06853788]
[1725384360524,0.086326,57934.0,57933.0,0.086328]
[1725384360822,0.03185422,57936.0,57935.0,0.086325]
[1725384361026,0.03185422,57936.0,57935.0,0.326325]
[1725384362317,0.02785422,57936.0,57935.0,0.326325]
[1725384362513,0.3608,57938.0,57937.0,0.086322]
[1725384362727,0.24,57942.0,57941.0,0.086316]
[1725384362926,0.24,57945.0,57940.0,0.06851512]
[1725384363225,0.02,57945.0,57944.0,0.086311]
[1725384364024,0.04785166,57945.0,57944.0,0.086311]
[1725384364225,0.02,57945.0,57944.0,0.086311]
[1725384364422,0.0499,57949.0,57944.0,0.172622]
[1725384364728,0.0499,57949.0,57948.0,0.326305]
[1725384364729,0.03,57949.0,57948.0,0.326305]
[1725384366125,0.03,57949.0,57948.0,0.41261]
[1725384366333,0.3608,57957.0,57948.0,0.41261]
[1725384366334,0.004,57960.0,57949.0,0.603984]
[1725384366517,0.3655,57972.0,57949.0,0.603984]
[1725384366518,0.004,57966.0,57965.0,0.08628]
[1725384366718,0.3608,57972.0,57971.0,0.086271]
[1725384366918,0.4908,57972.0,57971.0,0.086271]
[1725384367117,0.71677,57972.0,57967.0,0.086277]
[1725384367325,0.24,57970.0,57969.0,0.086274]
[1725384367622,0.13,57970.0,57969.0,0.086274]
[1725384367819,0.13,57970.0,57969.0,0.326274]
[1725384368026,0.37,57970.0,57969.0,0.086274]
[1725384368228,0.52710743,57970.0,57966.0,0.086278]
[1725384368425,0.6012,57967.0,57960.0,0.00025883]
[1725384368627,0.24,57962.0,57960.0,0.00025883]
[1725384368829,0.09561932,57961.0,57960.0,0.00025883]
[1725384369016,0.173298,57961.0,57960.0,0.00025883]
[1725384369642,0.173298,57961.0,57960.0,0.08654583]
[1725384370531,0.17330498,57961.0,57960.0,0.08754583]
[1725384371029,0.17730498,57961.0,57960.0,0.08854583]
[1725384371225,0.11541687,57961.0,57960.0,0.08854583]
[1725384372022,0.17730498,57961.0,57960.0,0.08854583]
[1725384372624,0.17730498,57961.0,57960.0,0.07969125]
[1725384372827,0.62439098,57961.0,57960.0,0.002]
[1725384373022,1.16945802,57961.0,57960.0,0.002]
[1725384373222,0.086298,57953.0,57952.0,0.004]
[1725384373532,0.086298,57953.0,57948.0,0.086305]
[1725384373533,0.43811487,57953.0,57948.0,0.086305]
[1725384373720,0.15711441,57952.0,57951.0,0.086301]
[1725384373921,0.0952263,57952.0,57951.0,0.086301]
[1725384374729,0.15711441,57952.0,57951.0,0.086301]
[1725384375527,0.1571308,57952.0,57951.0,0.086301]
[1725384375929,0.17332348,57952.0,57951.0,0.086301]
[1725384376125,0.1571308,57952.0,57951.0,0.086301]
[1725384376430,0.341,57953.0,57951.0,0.0863]
[1725384376431,0.337,57953.0,57951.0,0.0863]
[1725384376736,0.005,57952.0,57951.0,0.0863]
[1725384377135,0.005,57952.0,57951.0,0.3263]
[1725384377325,0.02808288,57953.0,57952.0,0.086299]
[1725384379938,0.03208288,57953.0,57952.0,0.086299]
[1725384380329,0.03308288,57953.0,57952.0,0.087299]
[1725384381138,0.02908288,57953.0,57952.0,0.087299]
[1725384381335,0.03408288,57953.0,57952.0,0.088299]
[1725384382230,0.03408288,57953.0,57952.0,0.173598]
[1725384383034,0.03408288,57953.0,57952.0,0.172598]
[1725384383231,0.07634527,57953.0,57952.0,0.172598]
[1725384383634,0.0064,57953.0,57952.0,0.258897]
[1725384383835,0.0024,57953.0,57952.0,0.258897]
[1725384384040,0.0034,57953.0,57952.0,0.258897]
[1725384385046,0.0024,57953.0,57952.0,0.258897]
[1725384385342,0.0034,57953.0,57952.0,0.619697]
[1725384385937,0.0014,57953.0,57952.0,0.619697]
[1725384386142,0.0034,57953.0,57952.0,0.619697]
[1725384387136,0.0034,57953.0,57952.0,0.705996]
[1725384387937,0.0034,57953.0,57952.0,2.184476]
[1725384388642,1e-06,57953.0,57952.0,2.184476]
[1725384390232,7e-08,57966.0,57965.0,0.25884]
[1725384390436,7e-08,57966.0,57965.0,0.85964]
[1725384390635,7e-08,57966.0,57965.0,0.94592]
[1725384391145,7e-08,57966.0,57965.0,2.06348]
[1725384391449,0.004,57982.0,57981.0,0.086256]
[1725384391634,0.0499,57983.0,57982.0,0.086255]
[1725384391834,0.3608,57994.0,57990.0,0.086243]
[1725384392047,0.3608,57994.0,57978.0,0.3608]
[1725384392048,0.38817948,57994.0,57993.0,0.326238]
[1725384392344,0.38817948,57994.0,57990.0,0.24]
[1725384392534,0.38817948,57994.0,57993.0,0.086238]
[1725384392738,0.38817948,57994.0,57988.0,0.00025883]
[1725384392739,0.62817948,57994.0,57988.0,0.00025883]
[1725384393043,0.447444,57989.0,57988.0,0.00025883]
[1725384394339,0.450444,57989.0,57988.0,0.00125883]
[1725384395441,0.3642,57989.0,57988.0,0.00225883]
[1725384395745,0.3642,57989.0,57988.0,0.08850483]
[1725384396144,0.3642,57989.0,57988.0,0.00225883]
[1725384396351,0.450444,57989.0,57988.0,0.00225883]
[1725384396544,1.080444,57989.0,57988.0,0.00225883]
[1725384397241,0.9942,57989.0,57988.0,0.00225883]
[1725384397440,0.9942,57989.0,57988.0,0.08850483]
[1725384399353,0.3642,57989.0,57988.0,0.08850483]
[1725384399547,0.3642,57989.0,57988.0,0.32850483]
[1725384400351,0.3642,57989.0,57988.0,0.41375083]
[1725384401038,0.0034,57989.0,57988.0,0.41375083]
[1725384401241,0.0024,57989.0,57988.0,0.41375083]
[1725384401842,0.0024,57989.0,57988.0,0.41475083]
[1725384402238,0.0024,57989.0,57988.0,0.50099683]
[1725384402543,0.0024,57989.0,57988.0,0.50499683]
[1725384403050,0.0004,57989.0,57988.0,0.50699683]
[1725384403845,0.0004,57989.0,57988.0,0.50899683]
[1725384404545,0.0004,57989.0,57988.0,0.50799683]
[1725384405346,0.0004,57989.0,57988.0,0.09550483]
[1725384405559,0.0927,57989.0,57988.0,0.09550483]
[1725384405750,0.0004,57989.0,57988.0,0.41675083]
[1725384406055,0.0004,57989.0,57988.0,0.41775083]
[1725384406353,0.23099169,57989.0,57988.0,0.41475083]
[1725384406557,0.28393144,57989.0,57988.0,0.41575083]
[1725384406746,0.28393144,57989.0,57988.0,0.41375083]
[1725384407145,0.09557558,57989.0,57988.0,0.41375083]
[1725384407642,0.09557558,57989.0,57988.0,0.41575083]
[1725384407845,0.26681317,57989.0,57988.0,0.41575083]
[1725384408548,0.26681317,57989.0,57988.0,0.41975083]
[1725384408750,0.09557558,57989.0,57988.0,0.41975083]
[1725384409149,0.21389065,57989.0,57988.0,0.41975083]
[1725384409355,0.09557558,57989.0,57988.0,0.41975083]
[1725384409560,0.00754958,57989.0,57988.0,0.20609464]
[1725384409751,0.35964268,57990.0,57989.0,0.172488]
[1725384409951,0.09517141,57990.0,57989.0,0.258732]
[1725384410954,0.09517141,57990.0,57989.0,0.259732]
[1725384411255,0.04223398,57990.0,57989.0,0.173488]
[1725384411458,0.04223398,57990.0,57989.0,0.001]
[1725384411459,0.18141441,57990.0,57989.0,0.001]
[1725384412161,0.18141441,57990.0,57989.0,0.092244]
[1725384412556,0.18141441,57990.0,57989.0,0.091244]
[1725384412854,0.09517141,57990.0,57989.0,0.091244]
[1725384413249,0.447036,57995.0,57989.0,0.086244]
[1725384413448,0.086225,58003.0,57993.0,0.24]
[1725384413449,0.13333,57999.0,57993.0,0.24]
[1725384414260,0.12459426,57998.0,57993.0,0.24]
[1725384415450,0.21082526,57998.0,57992.0,0.05117616]
[1725384415745,0.21082526,57998.0,57993.0,0.001]
[1725384415746,0.24,57997.0,57993.0,0.001]
[1725384415945,0.447036,57995.0,57993.0,0.087238]
[1725384416362,0.447036,57995.0,57994.0,0.086237]
[1725384416661,1.077036,57995.0,57994.0,0.086237]
[1725384416962,0.3608,57995.0,57994.0,0.086237]
[1725384418859,0.3618,57995.0,57994.0,0.087237]
[1725384419447,0.3618,57995.0,57994.0,0.088237]
[1725384419752,0.3608,57995.0,57994.0,0.087237]
[1725384419950,0.3608,57995.0,57994.0,0.088237]
[1725384419951,0.3618,57995.0,57994.0,0.088237]
[1725384420556,0.3618,57995.0,57994.0,0.174474]
[1725384421157,0.3618,57995.0,57994.0,0.24270888]
[1725384421462,0.3618,57995.0,57994.0,0.174474]
[1725384421664,0.3618,57995.0,57994.0,0.260711]
[1725384421665,0.001,57995.0,57994.0,0.260711]
[1725384423361,0.02849426,57998.0,57997.0,0.344928]
[1725384423554,0.0468,58004.0,58003.0,0.172446]
[1725384423754,0.1168,58004.0,58003.0,0.172446]
[1725384424160,0.1168,58004.0,58003.0,0.086223]
[1725384424460,0.3968,58004.0,58003.0,0.086223]
[1725384424864,0.1568,58004.0,58003.0,0.086223]
[1725384425160,0.18416705,58004.0,58003.0,0.086223]
[1725384425551,0.18416705,58004.0,58003.0,0.175446]
[1725384425750,0.14416705,58004.0,58003.0,0.415446]
[1725384426156,0.14416705,58004.0,58003.0,0.412446]
[1725384426351,0.14416705,58004.0,58003.0,0.172446]
[1725384426657,0.14416705,58004.0,58003.0,0.259669]
[1725384426959,0.14416705,58004.0,58003.0,0.499669]
[1725384427466,0.14416705,58004.0,58003.0,0.176446]
[1725384427864,0.14416705,58004.0,58003.0,0.179446]
[1725384428260,0.77416705,58004.0,58003.0,0.179446]
[1725384428466,0.77416705,58004.0,58003.0,0.093223]
[1725384428766,0.77416705,58004.0,58003.0,0.180446]
[1725384428967,1.29136705,58004.0,58003.0,0.090223]
[1725384429165,2.02758905,58004.0,58003.0,0.002]
[1725384429360,2.02758905,58004.0,58003.0,0.004]
[1725384429561,2.11381105,58004.0,58003.0,0.004]
[1725384429768,1.94136705,58004.0,57994.0,0.004]
[1725384430064,0.3608,57997.0,57996.0,0.086234]
[1725384430659,0.9908,57997.0,57996.0,0.086234]
[1725384430968,0.9908,57997.0,57992.0,0.24]
[1725384430969,0.9908,57997.0,57992.0,0.05118696]
[1725384431159,0.9908,57997.0,57995.0,0.086235]
[1725384431358,0.24,57996.0,57989.0,0.086243]
[1725384431557,0.24,57996.0,57988.0,0.05144579]
[1725384431558,0.6012,57990.0,57988.0,0.00025883]
[1725384431762,0.0965,57989.0,57988.0,0.00025883]
[1725384432063,0.1361,57989.0,57988.0,0.00025883]
[1725384432872,0.222344,57989.0,57988.0,0.00025883]
[1725384433274,0.1371,57989.0,57988.0,0.00025883]
[1725384433573,0.1371,57989.0,57988.0,0.08650483]
[1725384433773,0.0991,57989.0,57988.0,0.08650483]
[1725384434274,0.2191,57989.0,57988.0,0.08650483]
[1725384435168,0.1711,57989.0,57988.0,0.08650483]
[1725384435377,0.003,57989.0,57988.0,0.41275083]
[1725384436164,0.003,57989.0,57988.0,0.46393779]
[1725384436476,0.003,57989.0,57988.0,0.41275083]
[1725384438265,0.001,57989.0,57988.0,0.41475083]
[1725384438569,0.0004,57990.0,57989.0,0.172488]
[1725384439766,0.0004,57990.0,57989.0,0.260732]
[1725384441267,0.004,58002.0,58001.0,0.258678]
[1725384441472,0.3608,58007.0,58006.0,0.086219]
[1725384442673,0.3648,58007.0,58006.0,0.087219]
[1725384442973,0.3648,58007.0,58006.0,0.088219]
[1725384443169,0.3668,58007.0,58006.0,0.088219]
[1725384443562,0.39528395,58007.0,58006.0,0.088219]
[1725384444566,0.39528395,58007.0,58006.0,0.174438]
[1725384445577,0.43528395,58007.0,58006.0,0.174438]
[1725384446472,0.43528395,58007.0,58006.0,0.088219]
[1725384447172,0.48528395,58007.0,58006.0,0.088219]
[1725384447574,0.57150195,58007.0,58006.0,0.088219]
[1725384447778,1.20150195,58007.0,58006.0,0.088219]
[1725384448468,2.31870195,58007.0,58006.0,0.002]
[1725384449075,2.40491995,58007.0,58006.0,0.002]
[1725384451479,2.31870195,58007.0,58006.0,0.002]
[1725384451691,2.38870195,58007.0,58006.0,0.002]
[1725384451893,2.38870195,58007.0,58006.0,0.088219]
[1725384451894,0.43528395,58007.0,58006.0,0.088219]
[1725384452884,0.43528395,58007.0,58006.0,0.174438]
[1725384453284,0.43528395,58007.0,58006.0,0.088219]
[1725384455079,0.67528395,58007.0,58006.0,0.088219]
[1725384455277,1.94870195,58007.0,58006.0,0.002]
[1725384456279,0.83150195,58007.0,58006.0,0.002]
[1725384456482,0.76150195,58007.0,58006.0,0.088219]
[1725384457087,0.86150195,58007.0,58006.0,0.088219]
[1725384458290,0.86150195,58007.0,58006.0,0.002]
[1725384458491,1.01851705,58007.0,58006.0,0.002]
[1725384458677,1.03469631,58007.0,58006.0,0.002]
[1725384459987,0.24767831,58007.0,58006.0,0.414438]
[1725384460285,0.16964731,58007.0,58006.0,0.328219]
[1725384460687,0.30588232,58007.0,58006.0,0.328219]
[1725384460885,0.35881527,58007.0,58006.0,0.328219]
[1725384461088,0.35881527,58007.0,58006.0,0.414438]
[1725384461395,0.12577926,58008.0,58007.0,0.172436]
[1725384461690,0.09513611,58008.0,58007.0,0.326218]
[1725384461986,0.0451,58021.0,58020.0,0.086198]
[1725384462190,0.15640972,58021.0,58020.0,0.086198]
[1725384462588,0.218244,58021.0,58020.0,0.086198]
[1725384462788,0.24641997,58021.0,58020.0,0.086198]
[1725384463094,0.42458569,58021.0,58020.0,0.086198]
[1725384463297,0.48641997,58021.0,58020.0,0.086198]
[1725384463793,0.52641997,58021.0,58020.0,0.086198]
[1725384463995,0.18514554,58021.0,58020.0,0.086198]
[1725384464190,0.13948479,58021.0,58020.0,0.086198]
[1725384464488,0.11130882,58021.0,58020.0,0.086198]
[1725384464689,0.11130882,58021.0,58020.0,0.087198]
[1725384464990,0.11130882,58021.0,58020.0,0.088198]
[1725384465190,0.09513529,58021.0,58020.0,0.088198]
[1725384465892,0.33513529,58021.0,58020.0,0.002]
[1725384466195,0.48316657,58021.0,58020.0,0.002]
[1725384466399,0.24,58021.0,58020.0,0.001]
[1725384466580,0.24,58021.0,58020.0,0.002]
[1725384466783,0.87,58021.0,58020.0,0.002]
[1725384466992,2.233237,58021.0,58020.0,0.002]
[1725384467214,1.633237,58021.0,58020.0,0.002]
[1725384467992,2.233237,58021.0,58020.0,0.002]
[1725384468191,1.116197,58021.0,58020.0,0.002]
[1725384468392,2.233237,58021.0,58020.0,0.002]
[1725384468588,1.633237,58021.0,58020.0,0.002]
[1725384470684,1.116197,58021.0,58020.0,0.002]
[1725384471588,0.79,58021.0,58020.0,0.088198]
[1725384471788,0.08,58021.0,58020.0,0.088198]
[1725384472184,0.08,58021.0,58020.0,0.137898]
[1725384473587,0.17512666,58021.0,58020.0,0.137898]
[1725384475492,0.17512666,58021.0,58020.0,0.124798]
[1725384476285,0.17512666,58021.0,58020.0,0.210996]
[1725384479902,0.09512666,58021.0,58020.0,0.297194]
[1725384480197,0.09512666,58021.0,58020.0,0.383392]
[1725384480198,0.09476719,58021.0,58020.0,0.383392]
[1725384480403,0.06182788,58027.0,58026.0,0.172378]
[1725384480404,0.08945803,58027.0,58026.0,0.172378]
[1725384480706,0.02763015,58027.0,58026.0,0.172378]
[1725384480905,0.02763015,58027.0,58024.0,0.24]
[1725384480906,0.27541546,58033.0,58029.0,0.086185]
[1725384481095,0.0618195,58032.0,58029.0,0.086185]
[1725384481393,0.1718195,58032.0,58031.0,0.086182]
[1725384481596,0.11,58032.0,58031.0,0.086182]
[1725384481792,0.11,58032.0,58031.0,0.326182]
[1725384482697,0.11,58032.0,58031.0,0.412364]
[1725384482899,0.11,58032.0,58031.0,0.413364]
[1725384483103,0.11,58032.0,58031.0,0.37812119]
[1725384483402,0.11,58032.0,58031.0,0.46430319]
[1725384483597,0.11,58032.0,58031.0,0.087182]
[1725384484397,0.11,58032.0,58031.0,0.328182]
[1725384484596,0.10996,58032.0,58031.0,0.328182]
[1725384485489,0.10996,58032.0,58031.0,0.414364]
[1725384486003,0.10996,58032.0,58031.0,0.328182]
[1725384486596,0.10996,58032.0,58031.0,0.088182]
[1725384487400,0.10996,58032.0,58031.0,0.328182]
[1725384487997,0.10996,58032.0,58031.0,0.414364]
[1725384488496,0.05450976,58033.0,58031.0,0.414364]
[1725384488497,0.05450976,58033.0,58032.0,0.17236]
[1725384488699,0.05450976,58033.0,58032.0,0.22206]
[1725384489907,0.09450976,58033.0,58032.0,0.22206]
[1725384490202,0.09450976,58033.0,58032.0,0.22306]
[1725384491001,0.05450976,58033.0,58032.0,1.4272]
[1725384491304,0.027,58033.0,58032.0,0.31024]
[1725384491708,0.004,58044.0,58032.0,0.31024]
[1725384491709,0.004,58044.0,58032.0,1.788]
[1725384491914,0.004,58053.0,58052.0,0.086151]
[1725384492107,0.086135,58063.0,58052.0,0.6008]
[1725384492417,0.3608,58059.0,58052.0,0.24]
[1725384492605,0.0452,58062.0,58058.0,0.24]
[1725384492803,0.3886166,58064.0,58058.0,0.24]
[1725384493307,0.3886166,58064.0,58063.0,0.086134]
[1725384494214,0.0278166,58064.0,58063.0,0.086134]
[1725384494398,0.24,58064.0,58063.0,0.086134]
[1725384494604,0.24,58064.0,58059.0,0.3608]
[1725384494913,0.24,58061.0,58059.0,0.3608]
[1725384495108,0.0004,58060.0,58059.0,0.44694]
[1725384495704,0.0004,58060.0,58059.0,0.08614]
[1725384496413,0.2404,58060.0,58059.0,0.08614]
[1725384496709,0.2404,58060.0,58059.0,0.08714]
[1725384496916,0.2404,58060.0,58059.0,0.08814]
[1725384497413,0.26811975,58060.0,58059.0,0.08714]
[1725384497608,0.26811975,58060.0,58059.0,0.08814]
[1725384497811,0.31801975,58060.0,58059.0,0.08814]
[1725384498310,0.31801975,58060.0,58052.0,0.24]
[1725384498311,0.08614,58059.0,58052.0,0.086151]
[1725384498504,0.2404,58053.0,58049.0,0.086155]
[1725384498705,0.0004,58050.0,58049.0,0.086155]
[1725384498917,0.2404,58053.0,58049.0,0.086155]
[1725384499112,0.24,58050.0,58048.0,0.3608]
[1725384499307,0.0004,58049.0,58048.0,0.3608]
[1725384499916,0.0004,58049.0,58048.0,0.446957]
[1725384500313,0.24,58050.0,58048.0,0.446957]
[1725384500314,0.24,58050.0,58049.0,0.086755]
[1725384500502,0.24,58050.0,58049.0,0.0006]
[1725384500704,0.3608,58050.0,58049.0,0.0006]
[1725384500907,0.3608,58050.0,58049.0,0.086155]
[1725384501112,0.326151,58052.0,58049.0,0.086155]
[1725384501113,0.24,58052.0,58049.0,0.086155]
[1725384501611,0.001,58050.0,58049.0,0.087155]
[1725384502113,0.241,58050.0,58049.0,0.087155]
[1725384502817,0.242,58050.0,58049.0,0.088155]
[1725384503215,0.241,58050.0,58049.0,0.088155]
[1725384503517,0.28319564,58050.0,58049.0,0.088155]
[1725384503714,0.241,58050.0,58049.0,0.088155]
[1725384504409,0.242,58050.0,58049.0,0.088155]
[1725384505001,0.242,58050.0,58049.0,0.002]
[1725384505521,0.328154,58050.0,58049.0,0.002]
[1725384506012,0.242,58050.0,58049.0,0.002]
[1725384506203,0.242,58050.0,58049.0,0.001]
[1725384507113,0.328154,58050.0,58049.0,0.002]
[1725384509115,1.641108,58050.0,58049.0,0.002]
[1725384509313,1.751108,58050.0,58049.0,0.002]
[1725384509510,1.641108,58050.0,58049.0,0.002]
[1725384510710,1.691108,58050.0,58049.0,0.002]
[1725384511314,1.777262,58050.0,58049.0,0.002]
[1725384512315,0.172314,58048.0,58047.0,0.00025836]
[1725384512513,0.783514,58048.0,58047.0,0.00025836]
[1725384512714,1.900314,58048.0,58047.0,0.00025836]
[1725384512916,1.946114,58048.0,58047.0,0.00025836]
[1725384513510,1.861957,58048.0,58047.0,0.00225836]
[1725384513712,0.649,58048.0,58047.0,0.00225836]
[1725384513916,0.735157,58048.0,58047.0,0.00225836]
[1725384515027,0.735157,58048.0,58047.0,0.00125836]
[1725384515028,0.734157,58048.0,58047.0,0.00125836]
[1725384515223,0.736157,58048.0,58047.0,0.00225836]
[1725384516119,0.086172,58038.0,58033.0,0.004]
[1725384516319,0.086172,58038.0,58030.0,0.0047]
[1725384516320,0.3608,58034.0,58030.0,0.0014]
[1725384516520,0.0004,58031.0,58025.0,0.3608]
[1725384516727,0.2404,58026.0,58025.0,0.3608]
[1725384517017,0.239,58026.0,58025.0,0.446991]
[1725384517411,0.00065677,58031.0,58025.0,0.446991]
[1725384517412,0.00065677,58031.0,58025.0,0.3608]
[1725384517616,0.24,58026.0,58020.0,0.04975836]
[1725384517819,0.2404,58021.0,58020.0,0.08645636]
[1725384518022,0.2394,58021.0,58020.0,0.08645636]
[1725384518725,0.19627316,58021.0,58020.0,0.09845636]
[1725384519223,0.18827316,58021.0,58020.0,0.09845636]
[1725384519428,0.18827316,58021.0,58020.0,0.08645636]
[1725384519632,0.18827316,58021.0,58020.0,0.14938398]
[1725384519829,0.18927316,58021.0,58020.0,0.16238398]
[1725384520016,0.18927316,58021.0,58020.0,0.11145636]
[1725384520219,0.18927316,58021.0,58020.0,0.02525836]
[1725384520417,0.18927316,58021.0,58020.0,0.11145636]
[1725384520632,0.0014,58021.0,58020.0,0.11145636]
[1725384520821,0.02869475,58021.0,58020.0,0.11145636]
[1725384521017,0.0014,58021.0,58020.0,0.11145636]
[1725384521223,0.2414,58021.0,58020.0,0.11145636]
[1725384521424,0.0014,58021.0,58020.0,0.11145636]
[1725384522230,0.2414,58021.0,58020.0,0.11145636]
[1725384522833,0.26968746,58021.0,58020.0,0.11145636]
[1725384523933,0.02968746,58021.0,58020.0,0.19765436]
[1725384524238,0.0014,58021.0,58020.0,0.28385236]
[1725384524439,0.0014,58021.0,58020.0,0.33315236]
[1725384524831,1e-06,58021.0,58020.0,1.45019236]
[1725384525029,1e-06,58021.0,58020.0,1.53639036]
[1725384525335,0.00065677,58031.0,58030.0,0.172366]
[1725384525936,0.00025677,58031.0,58030.0,0.172366]
[1725384526640,0.24025677,58031.0,58030.0,0.087183]
[1725384527346,0.00025677,58031.0,58030.0,0.535166]
[1725384527646,0.00025677,58031.0,58030.0,0.088183]
[1725384528353,0.00025677,58031.0,58030.0,0.174366]
[1725384528549,0.00025677,58031.0,58030.0,0.088183]
[1725384529050,0.00025677,58031.0,58030.0,0.174366]
[1725384529249,0.00025677,58031.0,58030.0,1.531326]
[1725384530250,0.00025677,58031.0,58030.0,1.617509]
[1725384530446,0.00025677,58031.0,58030.0,1.531326]
[1725384530648,0.00025677,58031.0,58030.0,1.617509]
[1725384531349,0.00025677,58031.0,58030.0,1.531326]
[1725384531542,0.00025677,58031.0,58030.0,1.617509]
[1725384531738,7.7e-07,58031.0,58030.0,1.617509]
[1725384531943,7.7e-07,58031.0,58030.0,1.558665]
[1725384532150,7.7e-07,58031.0,58030.0,1.644848]
[1725384532357,7.7e-07,58031.0,58030.0,1.884848]
[1725384532548,0.9008,58063.0,58030.0,1.884848]
[1725384532549,0.0453,58056.0,58047.0,0.086158]
[1725384532746,0.02850286,58053.0,58052.0,0.086151]
[1725384532943,0.0496,58059.0,58056.0,0.086145]
[1725384533147,0.0496,58059.0,58058.0,0.086142]
[1725384533444,0.0453,58062.0,58052.0,0.6008]
[1725384533445,0.2853,58062.0,58061.0,0.086137]
[1725384533645,0.3053,58062.0,58061.0,0.086137]
[1725384534459,0.33307511,58062.0,58061.0,0.086137]
[1725384534658,0.33707511,58062.0,58061.0,0.001]
[1725384535153,1.45375511,58062.0,58061.0,0.001]
[1725384535749,1.45375511,58062.0,58061.0,0.002]
[1725384537653,1.82375511,58062.0,58061.0,0.002]
[1725384537857,1.82375511,58062.0,58053.0,0.00025836]
[1725384538157,0.6012,58054.0,58053.0,0.00025836]
[1725384538954,1.11796,58054.0,58053.0,0.00025836]
[1725384539163,1.804108,58054.0,58044.0,0.086162]
[1725384539358,0.0004,58045.0,58044.0,0.086162]
[1725384539558,0.2404,58045.0,58044.0,0.086162]
[1725384539864,0.24,58045.0,58044.0,0.086162]
[1725384540656,0.00025836,58050.0,58041.0,0.24]
[1725384540657,0.24025836,58050.0,58041.0,0.24]
[1725384540867,0.24025836,58050.0,58040.0,0.3608]
[1725384540868,0.00025836,58050.0,58049.0,0.086155]
[1725384541362,0.24025836,58050.0,58049.0,0.086155]
[1725384542854,0.00025836,58050.0,58049.0,0.086155]
[1725384543973,0.24025836,58050.0,58049.0,0.086155]
[1725384544264,0.24225836,58050.0,58049.0,0.086155]
[1725384547173,0.00225836,58050.0,58049.0,0.086155]
[1725384548472,0.00125836,58050.0,58049.0,0.086155]
[1725384549667,0.24125836,58050.0,58049.0,0.086155]
[1725384551272,0.24125836,58050.0,58045.0,0.3608]
[1725384551273,0.75805836,58050.0,58045.0,0.3608]
[1725384551468,0.24,58046.0,58045.0,0.446961]
[1725384551775,0.2404,58046.0,58045.0,0.446961]
[1725384552673,0.2404,58046.0,58039.0,0.00025836]